bitfinex/quotes_ETHUSD_20260129
["timestamp","ask_amount","ask_price","bid_price","bid_amount"]
[1769719272341,0.07515165,2791.9,2791.4,0.89560722]
[1769719272542,0.07515165,2792.2,2791.5,0.89557103]
[1769719272748,0.07515165,2792.0,2791.4,0.89558847]
[1769719273051,0.89525514,2792.5,2791.5,14.70619709]
[1769719273349,0.07515165,2792.2,2791.5,0.8955714]
[1769719273769,0.07515165,2792.4,2791.5,14.70619709]
[1769719273974,0.82515165,2792.4,2791.5,14.70619709]
[1769719274279,1.36279894,2792.4,2791.5,17.07618741]
[1769719274482,0.07515165,2792.2,2791.5,17.07618741]
[1769719277350,0.07515165,2792.2,2791.7,0.002]
[1769719277999,0.07515165,2791.8,2791.3,0.89563796]
[1769719279078,0.07515165,2792.0,2791.2,0.002]
[1769719279079,0.07515165,2792.0,2791.4,0.89560668]
[1769719279279,2.00117569,2791.9,2791.2,0.002]
[1769719279782,0.07515165,2791.8,2791.2,0.002]
[1769719279965,0.89531927,2792.3,2791.2,13.81262569]
[1769719280150,0.75,2792.2,2791.2,13.81262569]
[1769719281283,0.07515165,2792.1,2791.2,13.81262569]
[1769719281449,0.07515165,2792.1,2791.4,0.89560793]
[1769719283070,0.07515165,2791.7,2791.2,0.002]
[1769719283247,0.07515165,2791.7,2791.2,0.89765194]
[1769719283448,0.07515165,2791.7,2791.2,0.002]
[1769719284977,0.82515165,2791.9,2791.2,0.002]
[1769719285582,0.25472543,2791.9,2791.2,0.002]
[1769719285782,1.00472543,2791.9,2791.2,0.002]
[1769719285971,0.07515165,2791.7,2791.2,0.002]
[1769719286168,1.90018584,2791.9,2791.2,0.002]
[1769719286483,0.07515165,2791.7,2791.2,0.002]
[1769719286779,0.2726854,2791.7,2791.2,0.002]
[1769719287575,0.75,2791.8,2791.3,0.89564002]
[1769719287776,0.75,2791.8,2791.2,13.8333699]
[1769719288181,0.75,2791.8,2791.2,0.89764831]
[1769719289410,1.00472543,2791.9,2791.2,0.89765886]
[1769719289699,0.19001586,2791.8,2791.2,0.89765909]
[1769719291060,0.19001586,2791.8,2791.4,0.002]
[1769719291863,0.07515165,2791.7,2791.2,0.002]
[1769719293390,0.07515165,2791.4,2791.0,0.006]
[1769719293669,0.07515165,2791.2,2790.6,0.002]
[1769719293877,0.07515165,2791.2,2790.7,0.90181061]
[1769719295091,0.8956408,2791.3,2790.7,0.90181061]
[1769719295303,0.07515165,2791.2,2790.7,0.006]
[1769719295503,0.07515165,2790.6,2789.8,0.89811542]
[1769719295715,0.07515165,2790.4,2790.1,0.008]
[1769719297215,0.07515165,2790.4,2789.8,0.002]
[1769719297216,0.07515165,2790.2,2789.8,0.002]
[1769719297419,0.07515165,2790.2,2789.7,0.002]
[1769719297420,0.07515165,2790.0,2789.7,0.002]
[1769719297622,0.07515165,2789.9,2789.7,0.008]
[1769719297823,0.07365778,2789.9,2789.7,0.008]
[1769719298001,0.07515165,2790.0,2789.7,0.008]
[1769719298705,0.75,2790.1,2789.7,0.008]
[1769719298919,0.07515165,2790.0,2789.7,0.008]
[1769719299224,0.75,2790.1,2789.7,0.008]
[1769719299824,0.07515165,2790.0,2789.7,0.008]
[1769719302334,0.82515165,2790.0,2789.7,0.008]
[1769719303323,0.79414453,2790.3,2789.7,14.90970109]
[1769719303514,0.79414453,2790.3,2789.8,13.56244556]
[1769719304518,0.79414453,2790.3,2789.9,0.002]
[1769719304894,0.79414453,2790.3,2790.0,0.006]
[1769719305224,0.07515165,2790.2,2789.7,0.002]
[1769719305830,0.07515165,2790.2,2789.7,0.89815255]
[1769719305992,0.07515165,2790.2,2789.7,0.002]
[1769719306299,0.07515165,2789.6,2789.5,0.002]
[1769719306498,0.07515165,2789.8,2789.2,0.002]
[1769719306703,0.97121467,2790.0,2789.3,0.002]
[1769719306898,0.07515165,2789.8,2789.3,0.002]
[1769719307100,0.07515165,2790.0,2789.3,0.002]
[1769719307307,0.07515165,2790.0,2789.4,0.002]
[1769719307308,0.751,2789.9,2789.4,0.002]
[1769719307702,0.07515165,2789.8,2789.4,0.002]
[1769719310133,0.751,2789.9,2789.4,0.002]
[1769719311132,0.751,2789.8,2789.4,0.002]
[1769719312929,0.751,2789.8,2789.2,0.002]
[1769719313105,0.751,2789.8,2789.4,0.002]
[1769719314842,0.07515165,2789.5,2789.2,0.002]
[1769719315138,0.07515165,2789.5,2788.9,1.16317374]
[1769719315139,0.07515165,2789.3,2788.9,0.002]
[1769719315506,0.07515165,2789.1,2788.9,0.002]
[1769719315702,0.07515165,2789.3,2788.9,0.002]
[1769719316351,0.07515165,2789.1,2788.9,0.002]
[1769719316512,0.07515165,2789.3,2788.9,0.002]
[1769719316717,1.4061705,2789.3,2788.9,0.002]
[1769719317032,2.30247182,2789.3,2788.9,0.002]
[1769719317636,2.30247182,2789.3,2788.6,0.002]
[1769719318637,0.07515165,2788.8,2788.3,0.002]
[1769719318936,0.07515165,2788.6,2788.3,0.008]
[1769719319105,0.97166088,2788.6,2788.3,0.008]
[1769719319305,0.07515165,2788.6,2788.3,0.008]
[1769719319540,0.07515165,2788.6,2787.3,0.89692533]
[1769719319541,0.07515165,2788.2,2787.3,0.89692533]
[1769719319835,0.07515165,2788.4,2787.3,14.80617381]
[1769719319836,0.07515165,2788.1,2787.3,14.80617381]
[1769719320034,0.751,2788.1,2787.3,14.80617381]
[1769719320337,0.751,2788.2,2787.3,14.80617381]
[1769719320537,1.27012237,2788.6,2787.5,13.90924848]
[1769719320708,1.72265779,2788.7,2787.5,13.90924848]
[1769719320905,0.07515165,2788.5,2787.5,13.90924848]
[1769719321105,0.07515165,2788.7,2787.7,13.90924848]
[1769719321334,0.07515165,2789.1,2787.7,13.90924848]
[1769719321536,1.33101885,2789.3,2787.9,13.90924848]
[1769719321736,0.001,2789.7,2788.5,13.90924848]
[1769719322112,0.07515165,2789.6,2788.5,13.90924848]
[1769719322314,0.07515165,2789.4,2788.6,15.30017333]
[1769719322515,0.07515165,2789.6,2788.6,15.30017333]
[1769719322742,0.07515165,2789.4,2788.6,15.30017333]
[1769719323148,0.07515165,2789.6,2788.7,14.80572354]
[1769719323448,0.07515165,2789.5,2788.7,14.80572354]
[1769719323617,0.07515165,2789.5,2788.8,15.88750334]
[1769719324870,0.001,2789.7,2788.8,15.88750334]
[1769719325146,0.07515165,2790.1,2789.2,13.90924848]
[1769719325345,0.07515165,2790.1,2789.4,13.90924848]
[1769719327052,0.07515165,2789.9,2789.2,13.90924848]
[1769719327350,0.07515165,2789.9,2789.2,14.80554032]
[1769719328056,0.97120039,2790.1,2789.2,14.80554032]
[1769719329021,0.001,2789.9,2789.2,14.80554032]
[1769719329225,0.001,2789.9,2789.4,0.89625008]
[1769719329857,0.5316085,2790.2,2789.4,14.80549856]
[1769719331223,0.07515165,2790.6,2789.5,13.90924848]
[1769719331423,0.07515165,2790.8,2789.5,13.90924848]
[1769719331963,1.72289803,2791.0,2789.5,13.90924848]
[1769719332125,0.07515165,2790.8,2789.7,13.90924848]
[1769719332431,0.07615165,2791.0,2789.7,13.90924848]
[1769719332756,0.07515165,2790.8,2789.7,13.90924848]
[1769719333457,0.07615165,2791.0,2789.9,13.90924848]
[1769719333660,0.07515165,2790.8,2790.0,15.38978549]
[1769719333867,0.07515165,2790.8,2790.0,14.63978549]
[1769719334159,0.07615165,2791.0,2790.0,14.63978549]
[1769719334329,0.97188989,2791.0,2790.0,14.63978549]
[1769719336557,0.97188989,2791.0,2790.1,0.89602523]
[1769719336862,1.50998465,2791.0,2790.1,2.80801639]
[1769719337066,1.50998465,2791.0,2790.1,16.71726487]
[1769719337647,0.001,2791.0,2790.1,16.71726487]
[1769719339672,0.001,2791.0,2790.3,13.90924848]
[1769719340240,1.05645557,2791.6,2790.5,13.90924848]
[1769719340241,0.30545557,2791.6,2790.5,13.90924848]
[1769719340445,0.30545557,2791.6,2790.7,13.90924848]
[1769719340654,0.30545557,2791.6,2791.1,13.90924848]
[1769719340872,0.18830013,2791.6,2791.1,13.90924848]
[1769719341179,1e-08,2791.6,2791.1,13.90924848]
[1769719342890,1e-08,2791.6,2791.2,0.89567211]
[1769719344661,1e-08,2791.6,2791.2,14.80492059]
[1769719344985,1e-08,2791.6,2791.4,0.89560793]
[1769719345192,12.39799522,2793.3,2791.6,13.90924848]
[1769719345353,0.07515165,2792.8,2791.6,13.90924848]
[1769719346447,0.07515165,2792.9,2791.6,13.90924848]
[1769719346849,0.07515165,2792.9,2791.7,0.89551169]
[1769719347151,1.4329463,2792.9,2791.8,13.8521157]
[1769719348254,1.43294592,2792.9,2791.8,13.8521157]
[1769719348581,0.89512698,2792.9,2791.8,13.8521157]
[1769719348783,0.97126974,2793.0,2791.8,13.8521157]
[1769719349086,0.97126974,2793.0,2791.6,0.89551507]
[1769719349087,0.07515165,2792.3,2791.6,0.89551507]
[1769719349272,0.07515165,2792.3,2791.3,13.40435985]
[1769719349473,0.07515165,2792.4,2791.8,0.89547669]
[1769719350268,0.89611809,2793.0,2791.8,14.29983654]
[1769719350463,0.07515165,2792.5,2791.8,14.29983301]
[1769719350658,0.07515165,2792.5,2791.8,0.89547316]
[1769719351286,0.07515165,2792.5,2791.6,14.29990362]
[1769719351692,0.97040898,2792.5,2791.6,14.29990362]
[1769719351882,0.07515165,2792.5,2791.7,1.78820787]
[1769719352076,0.97035818,2792.7,2791.8,13.40435985]
[1769719353090,0.07515165,2792.3,2791.5,14.29991159]
[1769719353401,0.07515165,2792.5,2791.5,16.11149012]
[1769719353600,0.07515165,2792.3,2791.5,16.11149012]
[1769719354061,0.07615165,2792.3,2791.5,16.11149012]
[1769719354563,0.07615165,2792.3,2791.4,0.89558797]
[1769719354564,12.39899522,2792.3,2791.4,0.89558797]
[1769719354764,0.07515165,2792.2,2791.5,0.89555908]
[1769719355065,0.07515165,2792.2,2791.2,13.47258655]
[1769719355264,0.07515165,2792.2,2791.5,0.89557394]
[1769719355466,0.97050394,2792.2,2791.3,3.58251138]
[1769719355666,0.97050394,2792.2,2791.3,0.89564002]
[1769719355967,0.07515165,2791.5,2790.8,0.89578131]
[1769719356181,0.07515165,2791.5,2790.9,0.89576733]
[1769719356689,12.47314687,2791.9,2791.2,0.89566934]
[1769719356690,0.75,2791.9,2791.2,0.89566934]
[1769719356992,0.75,2791.9,2791.0,13.47258655]
[1769719357197,0.75,2791.9,2791.2,0.89566798]
[1769719357400,0.07515165,2792.0,2791.2,0.89566798]
[1769719357565,0.45528656,2792.1,2791.3,4.47829147]
[1769719357875,0.21758096,2792.0,2791.3,4.47829147]
[1769719359300,0.21758096,2792.0,2791.3,17.95087802]
[1769719359496,0.97149519,2792.3,2791.4,0.89560793]
[1769719359662,0.001,2792.3,2791.4,14.36819448]
[1769719360071,0.97147902,2792.3,2791.4,14.36819448]
[1769719360696,0.97147902,2792.3,2791.4,13.47258655]
[1769719362001,0.97147902,2792.3,2791.5,0.89557585]
[1769719362200,1.43426036,2792.3,2791.5,0.89557585]
[1769719362700,0.46378134,2792.3,2791.6,4.47829147]
[1769719362915,12.47314687,2793.2,2791.7,13.47258655]
[1769719363117,0.30394481,2793.4,2791.9,13.47258655]
[1769719363314,1.27408039,2793.4,2792.1,13.47258655]
[1769719363517,1.27408039,2793.4,2792.3,13.47258655]
[1769719364089,1.27408039,2793.4,2792.4,0.8952872]
[1769719364414,0.30394481,2793.4,2792.5,13.47258655]
[1769719364618,0.89466772,2794.4,2793.1,13.47258655]
[1769719364783,0.07515165,2794.9,2793.5,13.47258655]
[1769719364987,0.07515165,2794.7,2793.5,13.47258655]
[1769719365722,1.08076805,2796.6,2794.8,0.07515165]
[1769719365890,0.07515165,2797.7,2795.5,13.47258655]
[1769719366085,0.07515165,2797.7,2795.6,1.34725866]
[1769719366086,5.59385652,2796.9,2795.6,1.34725866]
[1769719366322,0.07515165,2796.4,2795.4,4.47829147]
[1769719366480,0.07515165,2796.2,2795.4,4.47829147]
[1769719366816,0.07515165,2795.7,2794.5,0.2335703]
[1769719367002,0.07515165,2795.5,2794.6,3.5782895]
[1769719368212,0.07515165,2795.7,2794.7,4.25765556]
[1769719368632,0.07515165,2795.0,2794.7,4.25765556]
[1769719368785,0.07515165,2795.0,2794.0,19.69627605]
[1769719368985,0.07515165,2795.3,2794.3,0.89466669]
[1769719369208,0.07515165,2795.1,2794.1,5.15237484]
[1769719369413,0.07515165,2795.1,2794.2,0.89470367]
[1769719369591,0.07515165,2795.1,2794.1,4.25765556]
[1769719369592,0.07515165,2795.1,2794.3,0.89467739]
[1769719370087,0.07515165,2795.1,2794.4,5.15229289]
[1769719370290,0.07515165,2795.1,2794.4,0.89463733]
[1769719370516,0.07515165,2794.5,2793.6,0.89489257]
[1769719370721,0.07515165,2794.5,2793.7,0.89486174]
[1769719370997,0.07515165,2794.5,2793.7,1.34232296]
[1769719371300,0.07515165,2794.5,2793.7,1.34232583]
[1769719371507,0.07515165,2794.1,2793.3,0.89497993]
[1769719371699,0.07515165,2794.1,2793.1,3.58025032]
[1769719371700,0.07515165,2794.1,2793.4,4.25765556]
[1769719371915,0.07515165,2794.1,2793.1,3.58025032]
[1769719371916,0.07515165,2794.1,2793.2,5.15265449]
[1769719372125,0.07515165,2794.1,2793.2,0.51526545]
[1769719372126,0.96996504,2793.9,2793.2,0.51526545]
[1769719372429,0.07515165,2793.9,2793.1,0.89504417]
[1769719372615,0.07515165,2794.0,2793.2,5.15268356]
[1769719372815,0.07515165,2794.0,2793.1,0.89504761]
[1769719373008,0.07515165,2794.0,2793.2,0.89503031]
[1769719373208,0.07515165,2794.0,2793.1,0.89504059]
[1769719373430,0.07515165,2793.8,2793.0,0.89508969]
[1769719373643,0.07515165,2793.8,2793.2,0.89502265]
[1769719373798,0.07515165,2793.9,2793.1,4.25765556]
[1769719374199,0.96998901,2793.9,2793.1,4.25765556]
[1769719374419,0.96998901,2793.9,2793.1,5.15271493]
[1769719374621,1.43239396,2793.9,2793.1,4.25765556]
[1769719374936,0.07515165,2794.3,2793.1,5.15271753]
[1769719375104,0.07515165,2794.1,2793.1,5.15271753]
[1769719375706,0.07515165,2793.9,2793.1,5.15271753]
[1769719376037,0.07515165,2793.8,2793.1,4.25765556]
[1769719376416,0.97000141,2793.8,2793.1,4.25765556]
[1769719376616,0.97000141,2793.8,2793.1,5.15271007]
[1769719376818,0.97000141,2793.8,2793.1,4.25765556]
[1769719377020,1.4249168,2793.8,2793.1,4.25765556]
[1769719377227,1.4249168,2793.8,2793.1,5.15271641]
[1769719377426,0.96991435,2794.1,2793.1,4.25765556]
[1769719377731,0.07515165,2793.9,2793.1,4.25765556]
[1769719377934,0.96991435,2794.1,2793.3,0.002]
[1769719377935,0.8947627,2794.1,2793.3,0.002]
[1769719378140,0.07515165,2794.1,2793.3,0.002]
[1769719380435,0.96991979,2794.1,2793.3,0.002]
[1769719380625,1.42479775,2794.1,2793.3,0.002]
[1769719381139,0.53002961,2794.1,2793.3,0.002]
[1769719381345,12.85876713,2795.1,2793.3,13.98772848]
[1769719381642,0.07515165,2794.5,2793.5,13.98572848]
[1769719381829,0.07515165,2794.2,2793.4,4.25765556]
[1769719382030,0.07515165,2794.0,2793.4,4.25765556]
[1769719382232,0.96973405,2794.6,2793.4,5.57858531]
[1769719382438,0.07515165,2794.4,2793.4,5.57858531]
[1769719383650,0.001,2794.9,2793.7,13.98572848]
[1769719383830,0.001,2794.9,2793.8,1.42192988]
[1769719384151,0.001,2794.9,2793.9,14.88053502]
[1769719384726,3.57708892,2795.6,2793.9,14.88053502]
[1769719384727,0.96933486,2795.9,2794.2,14.21929878]
[1769719385056,0.07515165,2795.7,2794.3,13.98572848]
[1769719385262,0.07515165,2795.9,2794.4,16.16423032]
[1769719385472,4.40131575,2796.3,2794.5,0.2335703]
[1769719385620,0.89397461,2796.5,2794.7,14.21929878]
[1769719385818,0.07515165,2796.2,2794.9,14.21929878]
[1769719386162,2.70201971,2796.4,2795.0,14.88018286]
[1769719386344,0.27020197,2796.3,2795.1,1.56901223]
[1769719386722,0.27020197,2796.3,2795.2,18.24338404]
[1769719387235,0.96914515,2796.5,2795.2,18.24338404]
[1769719387550,0.07515165,2796.5,2795.3,13.98572848]
[1769719387956,0.07515165,2796.1,2795.4,4.25765556]
[1769719388276,0.07515165,2796.1,2795.4,0.89432227]
[1769719388482,0.96920774,2796.3,2795.4,0.89432227]
[1769719388754,0.07515165,2796.1,2795.5,4.25765556]
[1769719389842,0.07515165,2796.1,2794.9,13.98572848]
[1769719389843,0.07515165,2795.9,2794.9,13.98572848]
[1769719390046,0.96934446,2795.9,2795.1,0.89441825]
[1769719390228,0.96932392,2795.9,2795.1,0.89441825]
[1769719390549,0.07615165,2795.9,2795.2,4.25765556]
[1769719390957,0.001,2795.9,2795.2,4.25765556]
[1769719391963,0.89517202,2795.9,2795.2,5.28470938]
[1769719392146,0.001,2795.9,2795.2,6.17909702]
[1769719394069,0.001,2795.9,2795.2,6.17908428]
[1769719395167,0.96917665,2796.4,2795.3,13.98572848]
[1769719395366,0.96917665,2796.4,2795.4,15.83078081]
[1769719395583,0.96917856,2796.4,2795.4,13.98572848]
[1769719395876,0.89398999,2796.5,2795.4,13.98572848]
[1769719396062,0.96916107,2796.4,2795.6,0.89426241]
[1769719396263,0.53717277,2796.4,2795.5,5.15194061]
[1769719396478,0.07515165,2796.4,2795.5,5.15194061]
[1769719396772,0.96912347,2796.6,2795.5,19.13766909]
[1769719397285,0.89397182,2796.6,2795.5,19.13766909]
[1769719397463,0.07515165,2796.6,2795.5,14.88001353]
[1769719397649,3.65071392,2796.8,2795.6,6.10337467]
[1769719397650,0.89391068,2796.7,2795.6,6.10337467]
[1769719397846,0.07515165,2796.6,2795.6,6.10337467]
[1769719398887,0.96908265,2796.7,2795.7,14.8799589]
[1769719399060,0.07515165,2796.7,2795.8,2.17783506]
[1769719399377,0.07515165,2796.9,2795.9,13.98572848]
[1769719399547,0.96898702,2797.0,2796.0,4.25765556]
[1769719399747,0.8936231,2797.6,2796.1,13.98572848]
[1769719400248,0.8936231,2797.6,2796.2,18.24338404]
[1769719400476,0.8936231,2797.6,2796.2,13.98572848]
[1769719400652,0.8936231,2797.6,2796.3,18.24338404]
[1769719400974,0.89371894,2797.3,2796.4,0.89400657]
[1769719401176,0.45437051,2797.2,2796.4,5.15166213]
[1769719401379,0.89371894,2797.3,2796.4,5.15166213]
[1769719401548,0.96884386,2797.4,2796.4,19.13739061]
[1769719401744,12.78361548,2798.1,2796.5,13.98572848]
[1769719401977,0.07515165,2797.6,2796.6,4.25765556]
[1769719402147,0.07515165,2797.6,2796.5,4.25765556]
[1769719402347,0.07515165,2797.6,2796.5,5.28470938]
[1769719402578,0.001,2797.2,2796.5,5.28470938]
[1769719402977,0.001,2797.2,2796.5,1.02705382]
[1769719403170,0.07515165,2797.1,2796.6,4.25765556]
[1769719403366,0.001,2797.2,2796.6,4.25765556]
[1769719405182,0.001,2797.2,2796.6,5.15158902]
[1769719405381,0.001,2797.2,2796.6,5.15159393]
[1769719405586,0.001,2797.2,2796.6,5.1515846]
[1769719405795,0.45546236,2797.2,2796.6,4.25765556]
[1769719406090,0.53061401,2797.2,2796.6,4.25765556]
[1769719406294,0.07615165,2797.2,2796.6,4.25765556]
[1769719406653,0.07515165,2797.1,2796.6,4.25765556]
[1769719406849,0.001,2797.2,2796.6,4.25765556]
[1769719407175,0.8938148,2797.0,2796.6,4.25765556]
[1769719408179,0.8938148,2797.0,2796.0,0.89411256]
[1769719408497,0.8938148,2797.0,2796.3,0.89403481]
[1769719408498,0.07515165,2796.7,2796.3,0.89403481]
[1769719409520,0.52957422,2796.9,2795.8,17.40207021]
[1769719409706,0.07515165,2796.9,2795.8,17.40207021]
[1769719410079,0.96900135,2796.9,2795.8,17.40207021]
[1769719410391,0.96900135,2796.9,2795.9,13.82529422]
[1769719410594,0.89380488,2797.1,2795.9,13.82529422]
[1769719411502,0.07515165,2797.0,2796.0,14.71942869]
[1769719411702,0.89380488,2797.1,2796.0,14.71942869]
[1769719412015,0.45449741,2797.0,2796.0,14.71942869]
[1769719412213,0.001,2797.2,2796.0,14.71942869]
[1769719412714,0.001,2797.2,2796.2,13.82529422]
[1769719413095,0.89475424,2797.2,2796.2,13.82529422]
[1769719413309,0.89475202,2797.2,2796.2,13.82529422]
[1769719413613,0.001,2797.2,2796.3,0.89403855]
[1769719413791,0.07615165,2797.2,2796.3,0.89403855]
[1769719414712,0.001,2797.2,2796.3,14.52419612]
[1769719415489,0.45546778,2797.2,2796.3,14.52419612]
[1769719415690,0.001,2797.2,2796.3,14.52419612]
[1769719416330,3.57421166,2797.9,2796.3,14.52419612]
[1769719416331,0.07515165,2800.7,2798.1,13.63015757]
[1769719416532,0.07515165,2800.7,2799.4,0.07515165]
[1769719416533,13.56047358,2800.7,2799.4,0.07515165]
[1769719416687,0.07515165,2799.7,2798.3,13.63015757]
[1769719416886,0.07515165,2799.6,2798.6,0.96003237]
[1769719417191,0.07515165,2799.4,2798.5,0.96003237]
[1769719417391,0.07515165,2799.6,2798.5,0.89333571]
[1769719417724,0.06787896,2799.4,2798.5,0.89333571]
[1769719418020,0.06787896,2799.2,2798.5,0.89333571]
[1769719418408,0.06787896,2799.4,2798.5,0.89333571]
[1769719418602,0.06787896,2799.2,2798.5,0.89333571]
[1769719421553,0.06787896,2799.2,2798.0,3.80746636]
[1769719421554,0.06787896,2798.9,2798.3,0.89338241]
[1769719421849,0.96099224,2799.2,2797.5,16.92338932]
[1769719421850,0.06787896,2798.4,2797.5,16.92338932]
[1769719422139,0.06787896,2798.9,2798.2,0.89340947]
[1769719422439,0.06787896,2798.9,2798.3,0.89339914]
[1769719422737,0.06787896,2799.1,2798.4,0.89336507]
[1769719422941,0.06787896,2798.9,2798.4,0.89336259]
[1769719423342,0.06787896,2798.9,2798.4,0.89336096]
[1769719423553,0.06787896,2798.9,2798.0,17.20401125]
[1769719423711,0.06787896,2799.1,2798.0,17.20401125]
[1769719423712,0.06787896,2799.1,2798.1,0.89346342]
[1769719424612,0.06787896,2798.9,2798.1,0.89346342]
[1769719425741,0.06787896,2798.8,2798.1,0.89346342]
[1769719426264,0.89306221,2799.4,2798.2,13.63015757]
[1769719426411,0.89306221,2799.4,2798.0,0.89347246]
[1769719426412,0.06787896,2799.1,2798.0,0.89347246]
[1769719427045,0.06787896,2798.9,2798.0,0.89347246]
[1769719427745,0.96109781,2798.9,2798.0,0.89347246]
[1769719428044,0.06787896,2798.5,2797.9,0.89352593]
[1769719428216,0.06787896,2798.7,2797.9,0.89351837]
[1769719428420,0.06787896,2798.5,2797.9,0.89350739]
[1769719428745,1.44793168,2798.7,2797.9,14.52366496]
[1769719428923,0.89319824,2799.0,2797.9,14.52366496]
[1769719429125,0.06787896,2798.9,2797.9,14.52366496]
[1769719429531,0.06787896,2799.1,2797.9,14.52366496]
[1769719429730,0.89317613,2799.0,2797.9,14.52366496]
[1769719429935,0.06787896,2798.9,2797.9,14.52366496]
[1769719430138,0.06787896,2798.9,2797.9,16.69086158]
[1769719432243,0.96103813,2799.1,2797.9,16.69086158]
[1769719433352,0.06787896,2798.9,2797.9,16.69086158]
[1769719434043,0.8931921,2799.0,2797.9,16.69086158]
[1769719434646,0.06787896,2798.9,2797.9,0.89350739]
[1769719434850,0.06787896,2798.7,2797.9,0.89350739]
[1769719436453,0.06787896,2798.7,2797.8,16.19146993]
[1769719436750,0.9611045,2798.9,2797.8,16.19146993]
[1769719436955,0.45338559,2798.8,2797.9,12.6172778]
[1769719437121,0.89304851,2799.4,2797.9,12.6172778]
[1769719437453,0.06787896,2799.3,2797.9,12.6172778]
[1769719438028,0.06787896,2799.3,2798.1,12.6192778]
[1769719438368,0.89311231,2799.2,2798.2,0.89343149]
[1769719439454,0.06787896,2799.1,2798.2,0.89343149]
[1769719439838,0.06787896,2798.9,2798.1,13.51271715]
[1769719440548,0.96104626,2799.1,2798.1,13.51271715]
[1769719441055,0.06787896,2798.9,2798.1,0.89543935]
[1769719441273,0.06787896,2798.9,2798.1,0.89546223]
[1769719441957,0.06787896,2798.9,2798.1,0.002]
[1769719442164,0.06787896,2798.7,2798.1,0.002]
[1769719442370,0.89330379,2798.6,2798.1,0.002]
[1769719442722,0.89330379,2798.6,2797.9,0.002]
[1769719442723,0.06787896,2798.5,2797.9,0.002]
[1769719443874,0.89329273,2798.7,2797.9,0.002]
[1769719444259,0.06787896,2798.6,2797.9,0.002]
[1769719444632,0.89329273,2798.7,2797.9,0.002]
[1769719444964,0.52129363,2798.6,2797.9,0.002]
[1769719445970,0.45341467,2798.6,2797.9,0.002]
[1769719448764,1.41461906,2798.6,2797.9,0.002]
[1769719449872,1.41461906,2798.6,2798.1,0.002]
[1769719450176,0.001,2798.4,2798.1,0.002]
[1769719456054,0.001,2798.4,2797.5,5.93542073]
[1769719456055,0.06787896,2798.3,2797.6,0.89361988]
[1769719456244,0.06787896,2798.3,2797.7,0.89358774]
[1769719456434,0.001,2798.4,2797.7,13.51086554]
[1769719456640,0.001,2798.4,2797.8,0.002]
[1769719457472,0.001,2798.4,2797.7,13.51086554]
[1769719457641,0.001,2798.4,2797.8,0.002]
[1769719461344,0.001,2798.4,2798.0,0.002]
[1769719462667,0.21736191,2798.4,2798.0,0.002]
[1769719463073,0.21736191,2798.4,2798.0,0.004]
[1769719464744,0.21736191,2798.4,2798.0,12.6212778]
[1769719464946,0.001,2798.4,2798.0,12.6212778]
[1769719465177,0.89326285,2798.8,2798.0,12.6212778]
[1769719465563,0.96111204,2798.9,2798.2,13.91045434]
[1769719465764,1.70911204,2798.9,2798.2,13.91045434]
[1769719466285,0.06787896,2798.7,2798.2,0.002]
[1769719466750,1.48126485,2798.7,2798.2,0.002]
[1769719467844,0.89330379,2798.6,2798.2,0.002]
[1769719468067,2.37456063,2798.7,2798.2,0.002]
[1769719469895,0.96123536,2798.5,2798.2,0.002]
[1769719470106,0.6065629,2798.5,2798.2,0.002]
[1769719470263,0.06787896,2798.5,2798.2,0.002]
[1769719470463,0.89332283,2798.6,2798.2,0.002]
[1769719472100,0.06787896,2798.1,2797.8,0.002]
[1769719472289,0.06787896,2798.1,2797.1,13.91045434]
[1769719472290,0.06787896,2798.0,2797.1,13.91045434]
[1769719472469,0.06787896,2797.8,2796.8,13.91045434]
[1769719472676,12.92474687,2798.0,2796.9,0.89381799]
[1769719472910,0.06787896,2797.9,2797.2,0.89373536]
[1769719473471,0.06787896,2797.9,2797.1,13.91045434]
[1769719474311,0.89355922,2797.8,2797.1,13.91045434]
[1769719474601,0.45355956,2797.7,2797.1,13.91045434]
[1769719474810,0.45355956,2797.7,2797.0,0.89379525]
[1769719475686,0.52143852,2797.7,2797.0,0.89379525]
[1769719475886,0.52143852,2797.7,2796.9,12.88677361]
[1769719476090,0.45355956,2797.7,2797.0,0.89381425]
[1769719476419,1.41503556,2797.7,2797.0,13.78058786]
[1769719477211,0.52143852,2797.7,2797.0,13.78058786]
[1769719478284,0.06787896,2797.7,2797.0,13.78058786]
[1769719480579,14.26225896,2798.1,2797.0,13.78058786]
[1769719480580,0.96131045,2798.3,2797.0,13.78058786]
[1769719480775,0.749,2798.2,2797.0,13.78058786]
[1769719480983,0.06787896,2798.1,2797.0,13.78058786]
[1769719482623,0.89344347,2798.2,2797.0,13.78058786]
[1769719482908,0.89344347,2798.2,2797.2,12.88677361]
[1769719483124,0.96132243,2798.2,2797.2,12.88677361]
[1769719484829,0.96132243,2798.2,2797.1,1.73559633]
[1769719484830,0.06787896,2797.8,2797.1,1.73559633]
[1769719485006,0.06787896,2797.8,2797.1,2.62935321]
[1769719485213,0.06787896,2797.9,2797.2,0.002]
[1769719486743,0.89355922,2797.8,2797.2,0.002]
[1769719486930,0.06787896,2797.7,2797.2,0.002]
[1769719487094,0.06787896,2797.7,2796.7,12.88877361]
[1769719487095,0.06787896,2797.3,2796.7,12.88877361]
[1769719487300,0.06787896,2797.5,2796.7,0.002]
[1769719487496,0.06787896,2797.3,2796.7,0.002]
[1769719488307,0.06787896,2797.1,2796.5,0.002]
[1769719488526,1.35801579,2797.1,2796.5,0.002]
[1769719488734,0.06787896,2797.0,2796.5,0.002]
[1769719489443,0.96169873,2797.0,2796.5,0.002]
[1769719489640,0.96169467,2797.0,2796.5,0.002]
[1769719490650,1.35801579,2797.1,2796.3,12.88877361]
[1769719490833,0.749,2797.2,2796.3,12.88877361]
[1769719493038,0.749,2797.2,2796.5,12.88677361]
[1769719493343,1.64275562,2797.2,2796.5,12.88677361]
[1769719493741,0.06787896,2797.1,2796.3,0.89601762]
[1769719494043,0.06787896,2797.1,2796.3,13.78279123]
[1769719495845,1.44739135,2797.1,2796.3,13.78279123]
[1769719496012,1.64273689,2797.3,2796.3,13.78279123]
[1769719496337,0.06787896,2797.1,2796.3,14.41760516]
[1769719496533,1.71061585,2797.3,2796.3,14.41760516]
[1769719496740,0.06787896,2797.1,2796.3,14.41760516]
[1769719497129,1.71061585,2797.3,2796.3,14.41760516]
[1769719497332,2.74994491,2797.2,2796.3,14.41760516]
[1769719497532,1.85618714,2797.2,2796.5,13.52158754]
[1769719497713,1.71061522,2797.3,2796.5,13.52358754]
[1769719498128,0.001,2796.9,2796.5,13.52358754]
[1769719499948,0.001,2796.9,2796.4,0.89400375]